fUST/lending_fUST_20240916
["ID","MTS","AMOUNT","RATE_DAILY","PERIOD"]
[338321835,1726497040798,-26636.1838688,0.00019147,3]
[338321837,1726497040807,-3000.0,0.0001915,2]
[338321839,1726497040817,-3000.0,0.0001916,2]
[338321841,1726497040827,-3000.0,0.0001917,2]
[338321843,1726497040837,-500.0,0.00019173,2]
[338321846,1726497040851,-500.0,0.00019173,2]
[338321848,1726497040861,-500.0,0.00019173,2]
[338321850,1726497040873,-500.0,0.00019173,2]
[338321852,1726497040883,-175.98272928,0.00019173,2]
[338321854,1726497040894,-500.0,0.00019173,2]
[338321856,1726497040903,-500.0,0.00019173,2]
[338321858,1726497040914,-500.0,0.00019173,2]
[338321860,1726497040923,-610.24288954,0.00019173,2]
[338321862,1726497040933,-500.0,0.00019173,2]
[338321864,1726497040942,-500.0,0.00019173,2]
[338321866,1726497040952,-500.0,0.00019173,2]
[338321868,1726497040961,-500.0,0.00019173,2]
[338321870,1726497040971,-500.0,0.00019173,2]
[338321872,1726497040981,-500.0,0.00019173,2]
[338321874,1726497040991,-1000.0,0.00019177,2]
[338321876,1726497041000,-1000.0,0.00019177,2]
[338321878,1726497041013,-500.0,0.00019177,2]
[338321881,1726497041022,-150.0,0.00019177,2]
[338321883,1726497041031,-17680.64506968,0.00019178,5]
[338321885,1726497041041,-500.0,0.00019178,2]
[338321887,1726497041050,-500.0,0.00019178,2]
[338321889,1726497041060,-500.0,0.00019178,2]
[338321891,1726497041069,-500.0,0.00019178,2]
[338321893,1726497041078,-500.0,0.00019178,2]
[338321895,1726497041088,-500.0,0.00019178,2]
[338321897,1726497041097,-500.0,0.00019178,2]
[338321899,1726497041106,-500.0,0.00019178,2]
[338321901,1726497041116,-500.0,0.00019178,2]
[338321903,1726497041125,-500.0,0.00019178,2]
[338321905,1726497041134,-500.0,0.00019178,2]
[338321907,1726497041143,-500.47117748,0.00019178,2]
[338321909,1726497041153,-500.0,0.00019178,2]
[338321911,1726497041162,-500.0,0.00019178,2]
[338321913,1726497041172,-500.0,0.00019178,2]
[338321915,1726497041181,-500.0,0.00019178,2]
[338321917,1726497041191,-500.0,0.00019178,2]
[338321919,1726497041201,-500.0,0.00019178,2]
[338321921,1726497041210,-500.0,0.00019178,2]
[338321923,1726497041219,-500.0,0.00019178,2]
[338321925,1726497041229,-500.0,0.00019178,2]
[338321927,1726497041239,-501.02223224,0.00019178,2]
[338321929,1726497041248,-500.0,0.00019178,2]
[338321931,1726497041260,-500.0,0.00019178,2]
[338321933,1726497041269,-500.0,0.00019178,2]
[338321935,1726497041279,-500.0,0.00019178,2]
[338321937,1726497041291,-500.0,0.00019178,2]
[338321939,1726497041301,-500.0,0.00019178,2]
[338321941,1726497041310,-500.0,0.00019178,2]
[338321944,1726497041320,-500.0,0.00019178,2]
[338321946,1726497041330,-630.96870364,0.00019178,2]
[338321948,1726497041339,-500.0,0.00019178,2]
[338321950,1726497041349,-878.11797977,0.00019178,2]
[338321952,1726497041359,-504.18537589,0.00019178,2]
[338321954,1726497041369,-500.0,0.00019178,2]
[338321956,1726497041378,-1372.02,0.00019178,2]
[338321958,1726497041388,-1047.46,0.00019178,2]
[338321959,1726497041397,-533.75,0.00019178,2]
[338321961,1726497041406,-500.0,0.00019178,2]
[338321962,1726497041415,-500.0,0.00019178,2]
[338321963,1726497041425,-500.0,0.00019178,2]
[338321964,1726497041435,-730.89,0.00019178,2]
[338321965,1726497041444,-500.0,0.00019178,2]
[338321966,1726497041454,-733.06,0.00019178,2]
[338321967,1726497041463,-1148.38,0.00019178,2]
[338321968,1726497041473,-500.0,0.00019178,2]
[338321969,1726497041483,-500.0,0.00019178,2]
[338321970,1726497041492,-500.70216422,0.00019178,2]
[338321971,1726497041502,-1291.0,0.00019178,2]
[338321972,1726497041513,-541.21,0.00019178,2]
[338321973,1726497041523,-500.0,0.00019178,2]
[338321974,1726497041532,-500.0,0.00019178,2]
[338321975,1726497041542,-500.0,0.00019178,2]
[338321976,1726497041552,-694.91,0.00019178,2]
[338321977,1726497041561,-500.0,0.00019178,2]
[338321978,1726497041571,-500.0,0.00019178,2]
[338321979,1726497041580,-500.0,0.00019178,2]
[338321980,1726497041590,-1084.25,0.00019178,2]
[338321981,1726497041601,-500.0,0.00019178,2]
[338321982,1726497041611,-200.0,0.00019178,2]
[338321983,1726497041622,-500.0,0.00019178,2]
[338321984,1726497041632,-500.0,0.00019178,2]
[338321985,1726497041643,-500.0,0.00019178,2]
[338321986,1726497041653,-691.69,0.00019178,2]
[338321987,1726497041662,-500.0,0.00019178,2]
[338321988,1726497041673,-500.0,0.00019178,2]
[338321989,1726497041682,-500.0,0.00019178,2]
[338321990,1726497041693,-500.0,0.00019178,2]
[338321991,1726497041703,-789.51,0.00019178,2]
[338321992,1726497041712,-500.0,0.00019178,2]
[338321993,1726497041722,-500.0,0.00019178,2]
[338321994,1726497041732,-500.0,0.00019178,2]
[338321995,1726497041742,-1064.59,0.00019178,2]
[338321996,1726497041753,-782.09,0.00019178,2]
[338321997,1726497041765,-500.0,0.00019178,2]
[338321998,1726497041774,-500.0,0.00019178,2]
[338321999,1726497041783,-500.0,0.00019178,2]
[338322000,1726497041794,-500.0,0.00019178,2]
[338322001,1726497041803,-500.0,0.00019178,2]
[338322002,1726497041814,-872.51,0.00019178,2]
[338322003,1726497041824,-534.4,0.00019178,2]
[338322004,1726497041833,-500.0,0.00019178,2]
[338322005,1726497041843,-500.0,0.00019178,2]
[338322006,1726497041852,-684.01,0.00019178,2]
[338322007,1726497041861,-502.76,0.00019178,2]
[338322008,1726497041871,-500.0,0.00019178,2]
[338322009,1726497041880,-500.0,0.00019178,2]
[338322010,1726497041889,-500.0,0.00019178,2]
[338322011,1726497041899,-860.85,0.00019178,2]
[338322012,1726497041908,-500.0,0.00019178,2]
[338322013,1726497041918,-500.0,0.00019178,2]
[338322014,1726497041927,-500.0,0.00019178,2]
[338322015,1726497041937,-725.37,0.00019178,2]
[338322016,1726497041946,-500.0,0.00019178,2]
[338322017,1726497041955,-500.0,0.00019178,2]
[338322018,1726497041965,-500.0,0.00019178,2]
[338322019,1726497041974,-500.0,0.00019178,2]
[338322020,1726497041983,-500.0,0.00019178,2]
[338322021,1726497041994,-899.45,0.00019178,2]
[338322022,1726497042006,-500.0,0.00019178,2]
[338322023,1726497042016,-678.17,0.00019178,2]
[338322024,1726497042025,-607.48,0.00019178,2]
[338322025,1726497042035,-500.0,0.00019178,2]
[338322026,1726497042046,-500.0,0.00019178,2]
[338322027,1726497042055,-500.0,0.00019178,2]
[338322028,1726497042064,-1654.29,0.00019178,2]
[338322029,1726497042074,-500.0,0.00019178,2]
[338322030,1726497042083,-500.0,0.00019178,2]
[338322031,1726497042093,-500.0,0.00019178,2]
[338322032,1726497042102,-500.0,0.00019178,2]
[338322033,1726497042112,-500.0,0.00019178,2]
[338322034,1726497042121,-500.0,0.00019178,2]
[338322035,1726497042131,-828.31,0.00019178,2]
[338322036,1726497042140,-1041.18,0.00019178,2]
[338322037,1726497042149,-594.16,0.00019178,2]
[338322038,1726497042159,-587.84499535,0.00019178,2]
[338322039,1726497042168,-500.0,0.00019178,2]
[338322040,1726497042177,-500.0,0.00019178,2]
[338322041,1726497042187,-278.55856708,0.00019178,2]
[338322042,1726497042196,-500.0,0.00019178,2]
[338322043,1726497042206,-500.0,0.00019178,2]
[338322044,1726497042215,-500.0,0.00019178,2]
[338322045,1726497042225,-500.0,0.00019178,2]
[338322046,1726497042234,-502.18091586,0.00019178,2]
[338322047,1726497042244,-500.0,0.00019178,2]
[338322048,1726497042257,-308.60618695,0.00019178,2]
[338322049,1726497042266,-500.0,0.00019178,2]
[338322050,1726497042276,-500.0,0.00019178,2]
[338322051,1726497042288,-1517.68,0.00019178,2]
[338322052,1726497042297,-500.0,0.00019178,2]
[338322053,1726497042307,-589.00726313,0.00019178,2]
[338322054,1726497042317,-500.0,0.00019178,2]
[338322055,1726497042327,-500.0,0.00019178,2]
[338322056,1726497042336,-852.19,0.00019178,2]
[338322057,1726497042345,-500.0,0.00019178,2]
[338322058,1726497042354,-516.19,0.00019178,2]
[338322059,1726497042364,-500.0,0.00019178,2]
[338322060,1726497042374,-500.0,0.00019178,2]
[338322061,1726497042383,-218.05251226,0.00019178,2]
[338322062,1726497042393,-500.0,0.00019178,2]
[338322063,1726497042402,-516.73,0.00019178,2]
[338322064,1726497042411,-673.96,0.00019178,2]
[338322065,1726497042420,-500.0,0.00019178,2]
[338322066,1726497042430,-520.33,0.00019178,2]
[338322067,1726497042440,-621.49,0.00019178,2]
[338322068,1726497042450,-500.0,0.00019178,2]
[338322069,1726497042460,-500.0,0.00019178,2]
[338322070,1726497042471,-1880.76,0.00019178,2]
[338322071,1726497042480,-500.0,0.00019178,2]
[338322072,1726497042489,-500.0,0.00019178,2]
[338322073,1726497042498,-500.0,0.00019178,2]
[338322074,1726497042509,-500.0,0.00019178,2]
[338322075,1726497042519,-500.0,0.00019178,2]
[338322076,1726497042529,-960.31,0.00019178,2]
[338322077,1726497042538,-500.0,0.00019178,2]
[338322078,1726497042548,-500.0,0.00019178,2]
[338322079,1726497042557,-500.0,0.00019178,2]
[338322080,1726497042568,-500.0,0.00019178,2]
[338322081,1726497042577,-500.0,0.00019178,2]
[338322082,1726497042587,-563.9,0.00019178,2]
[338322083,1726497042597,-1301.52,0.00019178,2]
[338322084,1726497042607,-500.0,0.00019178,2]
[338322085,1726497042616,-500.0,0.00019178,2]
[338322086,1726497042626,-500.0,0.00019178,2]
[338322087,1726497042635,-908.68,0.00019178,2]
[338322088,1726497042645,-639.85,0.00019178,2]
[338322089,1726497042654,-586.85,0.00019178,2]
[338322090,1726497042664,-500.0,0.00019178,2]
[338322091,1726497042673,-500.0,0.00019178,2]
[338322092,1726497042683,-500.0,0.00019178,2]
[338322093,1726497042693,-500.0,0.00019178,2]
[338322094,1726497042702,-500.0,0.00019178,2]
[338322095,1726497042712,-502.60302544,0.00019178,2]
[338322096,1726497042722,-500.0,0.00019178,2]
[338322097,1726497042732,-1219.27,0.00019178,2]
[338322098,1726497042741,-500.0,0.00019178,2]
[338322099,1726497042751,-826.54,0.00019178,2]
[338322100,1726497042764,-500.0,0.00019178,2]
[338322101,1726497042774,-500.0,0.00019178,2]
[338322102,1726497042784,-920.56,0.00019178,2]
[338322103,1726497042795,-500.0,0.00019178,2]
[338322104,1726497042805,-2188.02,0.00019178,2]
[338322105,1726497042815,-500.0,0.00019178,2]
[338322106,1726497042825,-741.18,0.00019178,2]
[338322107,1726497042834,-2071.57,0.00019178,2]
[338322108,1726497042844,-500.0,0.00019178,2]
[338322109,1726497042853,-500.0,0.00019178,2]
[338322110,1726497042863,-500.0,0.00019178,2]
[338322111,1726497042872,-627.54876901,0.00019178,2]
[338322112,1726497042881,-500.0,0.00019178,2]
[338322113,1726497042891,-500.0,0.00019178,2]
[338322114,1726497042902,-500.0,0.00019178,2]
[338322115,1726497042911,-964.67,0.00019178,2]
[338322116,1726497042921,-500.0,0.00019178,2]
[338322117,1726497042931,-500.0,0.00019178,2]
[338322118,1726497042941,-718.14,0.00019178,2]
[338322119,1726497042951,-520.40715158,0.00019178,2]
[338322120,1726497042960,-500.0,0.00019178,2]
[338322121,1726497042970,-975.51,0.00019178,2]
[338322122,1726497042979,-933.12,0.00019178,2]
[338322123,1726497042989,-500.0,0.00019178,2]
[338322124,1726497042998,-501.7124098,0.00019178,2]
[338322125,1726497043011,-500.0,0.00019178,2]
[338322126,1726497043020,-486.05285791,0.00019178,2]
[338322127,1726497043030,-1439.69,0.00019178,2]
[338322128,1726497043040,-500.0,0.00019178,2]
[338322129,1726497043049,-500.0,0.00019178,2]
[338322130,1726497043058,-500.0,0.00019178,2]
[338322131,1726497043068,-500.0,0.00019178,2]
[338322132,1726497043078,-500.0,0.00019178,2]
[338322133,1726497043087,-500.0,0.00019178,2]
[338322134,1726497043097,-506.42,0.00019178,2]
[338322137,1726497043107,-1284.92,0.00019178,2]
[338322138,1726497043291,-569.3,0.00019178,2]
[338322139,1726497043300,-506.18693709,0.00019178,2]
[338322140,1726497043310,-500.0,0.00019178,2]
[338322142,1726497043319,-500.0,0.00019178,2]
[338322144,1726497043330,-500.0,0.00019178,2]
[338322146,1726497043340,-1123.28,0.00019178,2]
[338322147,1726497043349,-207.89646049,0.00019178,2]
[338322148,1726497043359,-533.7,0.00019178,2]
[338322149,1726497043369,-533.7,0.00019178,2]
[338322150,1726497043379,-207.08151722,0.00019178,2]
[338322151,1726497043389,-533.7,0.00019178,2]
[338322152,1726497043398,-500.0,0.00019178,2]
[338322153,1726497043408,-533.7,0.00019178,2]
[338322154,1726497043417,-533.7,0.00019178,2]
[338322155,1726497043426,-533.7,0.00019178,2]
[338322156,1726497043436,-533.7,0.00019178,2]
[338322157,1726497043445,-533.7,0.00019178,2]
[338322158,1726497043454,-533.7,0.00019178,2]
[338322159,1726497043465,-533.7,0.00019178,2]
[338322160,1726497043475,-500.0,0.00019178,2]
[338322161,1726497043484,-500.0,0.00019178,2]
[338322162,1726497043494,-533.7,0.00019178,2]
[338322163,1726497043504,-533.7,0.00019178,2]
[338322164,1726497043523,-533.7,0.00019178,2]
[338322166,1726497043532,-533.7,0.00019178,2]
[338322167,1726497043541,-500.0,0.00019178,2]
[338322168,1726497043550,-533.7,0.00019178,2]
[338322169,1726497043561,-533.7,0.00019178,2]
[338322170,1726497043570,-533.7,0.00019178,2]
[338322171,1726497043580,-500.0,0.00019178,2]
[338322172,1726497043589,-533.7,0.00019178,2]
[338322173,1726497043599,-533.7,0.00019178,2]
[338322174,1726497043609,-533.7,0.00019178,2]
[338322175,1726497043619,-500.0,0.00019178,2]
[338322176,1726497043629,-533.7,0.00019178,2]
[338322177,1726497043638,-533.7,0.00019178,2]
[338322178,1726497043648,-533.7,0.00019178,2]
[338322179,1726497043657,-533.82,0.00019178,2]
[338322180,1726497043666,-500.0,0.00019178,2]
[338322181,1726497043676,-500.0,0.00019178,2]
[338322182,1726497043685,-2604.86,0.00019178,2]
[338322183,1726497043695,-500.0,0.00019178,2]
[338322184,1726497043704,-500.0,0.00019178,2]
[338322185,1726497043714,-1154.0,0.00019178,2]
[338322186,1726497043723,-647.81764183,0.00019178,2]
[338322187,1726497043732,-500.0,0.00019178,2]
[338322188,1726497043741,-548.26,0.00019178,2]
[338322189,1726497043751,-513.54,0.00019178,2]
[338322190,1726497043769,-500.0,0.00019178,2]
[338322191,1726497043778,-500.0,0.00019178,2]
[338322192,1726497043787,-500.0,0.00019178,2]
[338322193,1726497043797,-724.83,0.00019178,2]
[338322194,1726497043806,-1785.4,0.00019178,2]
[338322195,1726497043815,-500.0,0.00019178,2]
[338322196,1726497043825,-500.0,0.00019178,2]
[338322197,1726497043834,-500.0,0.00019178,2]
[338322198,1726497043843,-500.0,0.00019178,2]
[338322199,1726497043853,-500.0,0.00019178,2]
[338322200,1726497043862,-500.0,0.00019178,2]
[338322201,1726497043870,-500.0,0.00019178,2]
[338322202,1726497043879,-500.0,0.00019178,2]
[338322203,1726497043889,-500.0,0.00019178,2]
[338322204,1726497043898,-1781.44,0.00019178,2]
[338322205,1726497043907,-500.0,0.00019178,2]
[338322206,1726497043916,-500.0,0.00019178,2]
[338322207,1726497043926,-500.0,0.00019178,2]
[338322208,1726497043935,-500.0,0.00019178,2]
[338322209,1726497043945,-500.0,0.00019178,2]
[338322210,1726497043954,-500.0,0.00019178,2]
[338322211,1726497043963,-500.0,0.00019178,2]
[338322212,1726497043972,-500.0,0.00019178,2]
[338322213,1726497043982,-500.0,0.00019178,2]
[338322214,1726497043990,-500.0,0.00019178,2]
[338322215,1726497044000,-500.0,0.00019178,2]
[338322216,1726497044012,-500.0,0.00019178,2]
[338322217,1726497044022,-500.0,0.00019178,2]
[338322218,1726497044031,-500.0,0.00019178,2]
[338322219,1726497044040,-500.0,0.00019178,2]
[338322220,1726497044049,-500.0,0.00019178,2]
[338322221,1726497044059,-500.0,0.00019178,2]
[338322222,1726497044068,-539.22013221,0.00019178,2]
[338322223,1726497044078,-706.74,0.00019178,2]
[338322224,1726497044087,-500.0,0.00019178,2]
[338322225,1726497044096,-500.0,0.00019178,2]
[338322226,1726497044106,-500.0,0.00019178,2]
[338322227,1726497044115,-500.0,0.00019178,2]
[338322228,1726497044124,-500.0,0.00019178,2]
[338322229,1726497044133,-500.0,0.00019178,2]
[338322230,1726497044142,-1724.52,0.00019178,2]
[338322231,1726497044151,-731.13,0.00019178,2]
[338322232,1726497044161,-500.45840071,0.00019178,2]
[338322233,1726497044171,-500.0,0.00019178,2]
[338322234,1726497044180,-500.0,0.00019178,2]
[338322235,1726497044188,-500.0,0.00019178,2]
[338322236,1726497044198,-500.0,0.00019178,2]
[338322237,1726497044207,-512.12,0.00019178,2]
[338322238,1726497044217,-500.0,0.00019178,2]
[338322239,1726497044227,-1402.58,0.00019178,2]
[338322240,1726497044236,-500.0,0.00019178,2]
[338322241,1726497044245,-500.0,0.00019178,2]
[338322242,1726497044257,-500.0,0.00019178,2]
[338322243,1726497044267,-839.12,0.00019178,2]
[338322244,1726497044277,-500.0,0.00019178,2]
[338322245,1726497044289,-500.0,0.00019178,2]
[338322246,1726497044299,-773.6,0.00019178,2]
[338322247,1726497044309,-500.0,0.00019178,2]
[338322248,1726497044318,-500.0,0.00019178,2]
[338322249,1726497044328,-500.0,0.00019178,2]
[338322250,1726497044337,-500.0,0.00019178,2]
[338322251,1726497044347,-500.0,0.00019178,2]
[338322252,1726497044357,-534.74159945,0.00019178,2]
[338322253,1726497044366,-524.0,0.00019178,2]
[338322254,1726497044377,-1889.63,0.00019178,2]
[338322255,1726497044386,-500.0,0.00019178,2]
[338322256,1726497044396,-500.0,0.00019178,2]
[338322257,1726497044405,-500.0,0.00019178,2]
[338322258,1726497044415,-500.0,0.00019178,2]
[338322259,1726497044425,-500.0,0.00019178,2]
[338322260,1726497044435,-500.0,0.00019178,2]
[338322261,1726497044445,-500.0,0.00019178,2]
[338322262,1726497044454,-718.16,0.00019178,2]
[338322263,1726497044464,-500.0,0.00019178,2]
[338322264,1726497044473,-2349.16,0.00019178,2]
[338322265,1726497044483,-1895.83,0.00019178,2]
[338322266,1726497044492,-500.0,0.00019178,2]
[338322267,1726497044502,-395.18637723,0.00019178,2]
[338322268,1726497044514,-500.53518275,0.00019178,2]
[338322270,1726497044524,-793.36,0.00019178,2]
[338322271,1726497044533,-1129.07,0.00019178,2]
[338322272,1726497044542,-500.0,0.00019178,2]
[338322273,1726497044552,-500.0,0.00019178,2]
[338322274,1726497044561,-1606.7,0.00019178,2]
[338322275,1726497044571,-250.24949348,0.00019178,2]
[338322276,1726497044580,-824.68,0.00019178,2]
[338322277,1726497044590,-561.11,0.00019178,2]
[338322278,1726497044599,-500.0,0.00019178,2]
[338322279,1726497044609,-500.0,0.00019178,2]
[338322280,1726497044618,-787.73,0.00019178,2]
[338322281,1726497044628,-500.0,0.00019178,2]
[338322282,1726497044637,-552.75087263,0.00019178,2]
[338322283,1726497044646,-500.0,0.00019178,2]
[338322284,1726497044656,-1501.47,0.00019178,2]
[338322285,1726497044665,-500.0,0.00019178,2]
[338322286,1726497044675,-500.0,0.00019178,2]
[338322287,1726497044684,-500.0,0.00019178,2]
[338322288,1726497044693,-500.0,0.00019178,2]
[338322289,1726497044703,-500.0,0.00019178,2]
[338322290,1726497044713,-1260.07,0.00019178,2]
[338322291,1726497044723,-500.0,0.00019178,2]
[338322292,1726497044733,-500.0,0.00019178,2]
[338322293,1726497044742,-509.42,0.00019178,2]
[338322294,1726497044752,-687.1,0.00019178,2]
[338322295,1726497044762,-500.0,0.00019178,2]
[338322296,1726497044771,-767.98,0.00019178,2]
[338322297,1726497044781,-500.0,0.00019178,2]
[338322298,1726497044790,-160.44261234,0.00019178,2]
[338322299,1726497044800,-812.26,0.00019178,2]
[338322300,1726497044809,-500.0,0.00019178,2]
[338322301,1726497044819,-500.0,0.00019178,2]
[338322302,1726497044829,-500.0,0.00019178,2]
[338322303,1726497044838,-1837.34,0.00019178,2]
[338322304,1726497044848,-500.0,0.00019178,2]
[338322305,1726497044857,-801.65,0.00019178,2]
[338322306,1726497044867,-500.65973834,0.00019178,2]
[338322307,1726497044877,-588.09,0.00019178,2]
[338322308,1726497044886,-166.85765189,0.00019178,2]
[338322309,1726497044896,-578.58716265,0.00019178,2]
[338322310,1726497044906,-500.0,0.00019178,2]
[338322311,1726497044916,-500.0,0.00019178,2]
[338322312,1726497044926,-1188.57,0.00019178,2]
[338322313,1726497044935,-1310.25,0.00019178,2]
[338322314,1726497044945,-500.0,0.00019178,2]
[338322315,1726497044954,-500.0,0.00019178,2]
[338322316,1726497044964,-748.49,0.00019178,2]
[338322317,1726497044973,-500.0,0.00019178,2]
[338322318,1726497044983,-3350.88,0.00019178,2]
[338322319,1726497044993,-500.0,0.00019178,2]
[338322320,1726497045003,-1296.41,0.00019178,2]
[338322321,1726497045015,-500.0,0.00019178,2]
[338322322,1726497045026,-500.0,0.00019178,2]
[338322323,1726497045035,-500.0,0.00019178,2]
[338322324,1726497045044,-500.0,0.00019178,2]
[338322325,1726497045054,-2285.19,0.00019178,2]
[338322326,1726497045064,-500.0,0.00019178,2]
[338322327,1726497045074,-500.0,0.00019178,2]
[338322328,1726497045084,-500.0,0.00019178,2]
[338322329,1726497045094,-500.0,0.00019178,2]
[338322330,1726497045104,-2496.43,0.00019178,2]
[338322331,1726497045113,-500.0,0.00019178,2]
[338322332,1726497045123,-500.0,0.00019178,2]
[338322333,1726497045132,-766.58,0.00019178,2]
[338322334,1726497045141,-673.6,0.00019178,2]
[338322335,1726497045151,-904.07,0.00019178,2]
[338322336,1726497045161,-500.0,0.00019178,2]
[338322337,1726497045170,-500.0,0.00019178,2]
[338322338,1726497045180,-500.0,0.00019178,2]
[338322339,1726497045190,-2387.11,0.00019178,2]
[338322340,1726497045200,-670.33,0.00019178,2]
[338322341,1726497045209,-496.5030005,0.00019178,2]
[338322342,1726497045219,-500.0,0.00019178,2]
[338322343,1726497045228,-500.0,0.00019178,2]
[338322344,1726497045238,-2996.03,0.00019178,2]
[338322345,1726497045248,-643.11,0.00019178,2]
[338322346,1726497045260,-500.0,0.00019178,2]
[338322347,1726497045270,-500.0,0.00019178,2]
[338322348,1726497045280,-512.49,0.00019178,2]
[338322349,1726497045292,-500.0,0.00019178,2]
[338322350,1726497045301,-1192.73,0.00019178,2]
[338322351,1726497045311,-500.0,0.00019178,2]
[338322352,1726497045322,-1894.28,0.00019178,2]
[338322353,1726497045332,-500.0,0.00019178,2]
[338322354,1726497045342,-984.52,0.00019178,2]
[338322355,1726497045352,-500.0,0.00019178,2]
[338322356,1726497045362,-500.0,0.00019178,2]
[338322357,1726497045372,-688.85,0.00019178,2]
[338322358,1726497045382,-500.0,0.00019178,2]
[338322359,1726497045392,-500.0,0.00019178,2]
[338322360,1726497045401,-500.0,0.00019178,2]
[338322361,1726497045410,-500.0,0.00019178,2]
[338322362,1726497045419,-614.77,0.00019178,2]
[338322363,1726497045429,-182.36098277,0.00019178,2]
[338322364,1726497045438,-500.0,0.00019178,2]
[338322365,1726497045448,-1440.64,0.00019178,2]
[338322366,1726497045457,-500.0,0.00019178,2]
[338322367,1726497045467,-500.0,0.00019178,2]
[338322368,1726497045476,-500.0,0.00019178,2]
[338322369,1726497045486,-633.0061915,0.00019178,2]
[338322370,1726497045495,-500.0,0.00019178,2]
[338322371,1726497045505,-500.0,0.00019178,2]
[338322372,1726497045520,-500.0,0.00019178,2]
[338322373,1726497045529,-625.64,0.00019178,2]
[338322374,1726497045538,-500.0,0.00019178,2]
[338322375,1726497045547,-508.72,0.00019178,2]
[338322376,1726497045556,-500.0,0.00019178,2]
[338322377,1726497045565,-500.0,0.00019178,2]
[338322378,1726497045574,-1344.25,0.00019178,2]
[338322379,1726497045582,-503.79769047,0.00019178,2]
[338322380,1726497045591,-1026.31,0.00019178,2]
[338322381,1726497045601,-500.0,0.00019178,2]
[338322382,1726497045610,-387.2239372,0.00019178,2]
[338322383,1726497045620,-539.11,0.00019178,2]
[338322384,1726497045630,-500.0,0.00019178,2]
[338322385,1726497045640,-539.11,0.00019178,2]
[338322386,1726497045649,-539.11,0.00019178,2]
[338322387,1726497045659,-539.11,0.00019178,2]
[338322388,1726497045669,-539.11,0.00019178,2]
[338322389,1726497045679,-539.11,0.00019178,2]
[338322390,1726497045689,-539.11,0.00019178,2]
[338322391,1726497045698,-596.07,0.00019178,2]
[338322392,1726497045707,-539.11,0.00019178,2]
[338322393,1726497045717,-539.11,0.00019178,2]
[338322394,1726497045726,-539.11,0.00019178,2]
[338322395,1726497045736,-500.5298791,0.00019178,2]
[338322396,1726497045747,-539.11,0.00019178,2]
[338322397,1726497045758,-500.0,0.00019178,2]
[338322398,1726497045767,-539.11,0.00019178,2]
[338322399,1726497045777,-539.11,0.00019178,2]
[338322400,1726497045787,-539.11,0.00019178,2]
[338322401,1726497045798,-539.11,0.00019178,2]
[338322402,1726497045808,-539.11,0.00019178,2]
[338322403,1726497045818,-539.11,0.00019178,2]
[338322404,1726497045827,-500.0,0.00019178,2]
[338322405,1726497045837,-539.11,0.00019178,2]